[Event "Early-Titled-Tuesday-Blitz-July-09-2024"]
[Site "Chess.com"]
[Date "2024.07.09"]
[Round "6"]
[White "Antek_Radzimski"]
[Black "mwpchess"]
[Result "0-1"]
[WhiteElo "2571"]
[BlackElo "2758"]
[TimeControl "180+1"]
[EndTime "9:09:39 PDT"]
[Termination "mwpchess won by resignation"]

1. e4 {[%clk 0:03:00.9]} 1... c5 {[%clk 0:02:55.6]} 2. Nf3 {[%clk 0:03:00.2]}
2... d6 {[%clk 0:02:55.5]} 3. d4 {[%clk 0:03:00.6]} 3... cxd4 {[%clk 0:02:56.4]}
4. Nxd4 {[%clk 0:03:01.2]} 4... Nf6 {[%clk 0:02:56.6]} 5. Nc3 {[%clk 0:03:01.7]}
5... Nc6 {[%clk 0:02:56.7]} 6. Bg5 {[%clk 0:03:00.9]} 6... e6 {[%clk 0:02:57]}
7. Qd3 {[%clk 0:03:01.2]} 7... Be7 {[%clk 0:02:42.4]} 8. O-O-O {[%clk
0:03:00.8]} 8... a6 {[%clk 0:02:32.8]} 9. f4 {[%clk 0:03:00.2]} 9... Bd7 {[%clk
0:02:23]} 10. Be2 {[%clk 0:02:56.2]} 10... Qc7 {[%clk 0:02:10.8]} 11. Kb1 {[%clk
0:02:53.8]} 11... h6 {[%clk 0:01:52.9]} 12. Bh4 {[%clk 0:02:53.4]} 12... Rc8
{[%clk 0:01:41.1]} 13. g4 {[%clk 0:02:47.8]} 13... g5 {[%clk 0:01:37]} 14. fxg5
{[%clk 0:02:30.6]} 14... Ne5 {[%clk 0:01:35.3]} 15. Qg3 {[%clk 0:02:24.6]} 15...
hxg5 {[%clk 0:01:28.3]} 16. Bxg5 {[%clk 0:02:22.3]} 16... Rg8 {[%clk 0:01:27.2]}
17. Bxf6 {[%clk 0:02:16.6]} 17... Bxf6 {[%clk 0:01:26.5]} 18. Rhf1 {[%clk
0:02:15.5]} 18... Bh8 {[%clk 0:01:11.7]} 19. h3 {[%clk 0:01:50.4]} 19... b5
{[%clk 0:01:09.2]} 20. a3 {[%clk 0:01:48]} 20... Nc4 {[%clk 0:01:07.1]} 21. Bxc4
{[%clk 0:01:37.3]} 21... bxc4 {[%clk 0:01:05.8]} 22. Qf2 {[%clk 0:01:32.8]}
22... Rf8 {[%clk 0:00:59.5]} 23. g5 {[%clk 0:01:30.9]} 23... Rb8 {[%clk
0:00:50.5]} 24. g6 {[%clk 0:01:28.1]} 24... Qb6 {[%clk 0:00:46.7]} 25. gxf7+
{[%clk 0:01:22.9]} 25... Kd8 {[%clk 0:00:46.4]} 26. Na4 {[%clk 0:00:38.3]} 26...
Bxa4 {[%clk 0:00:44.2]} 27. Nxe6+ {[%clk 0:00:37.9]} 27... Ke7 {[%clk
0:00:42.5]} 28. Qxb6 {[%clk 0:00:08.5]} 28... Rxb6 {[%clk 0:00:43.4]} 29. Nd4
{[%clk 0:00:08.8]} 29... Rxf7 {[%clk 0:00:35.9]} 30. Rxf7+ {[%clk 0:00:07.6]}
30... Kxf7 {[%clk 0:00:36.8]} 31. Rf1+ {[%clk 0:00:07.7]} 31... Ke8 {[%clk
0:00:33.2]} 32. c3 {[%clk 0:00:06.1]} 32... Rb7 {[%clk 0:00:29.3]} 33. Nf5
{[%clk 0:00:05.5]} 33... Be5 {[%clk 0:00:27.7]} 34. Kc1 {[%clk 0:00:05.9]} 34...
Bc6 {[%clk 0:00:23.5]} 35. Re1 {[%clk 0:00:03.8]} 35... Rh7 {[%clk 0:00:22.3]}
36. h4 {[%clk 0:00:04.4]} 36... Bd7 {[%clk 0:00:22.3]} 37. Ne3 {[%clk 0:00:03]}
37... Be6 {[%clk 0:00:20.5]} 38. Rh1 {[%clk 0:00:02.1]} 38... Bf4 {[%clk
0:00:20.4]} 39. Kd2 {[%clk 0:00:01.5]} 39... Rh5 {[%clk 0:00:19.1]} 40. Ke2
{[%clk 0:00:01.4]} 40... Bg5 {[%clk 0:00:16.3]} 41. Rg1 {[%clk 0:00:01.2]} 41...
Bxh4 {[%clk 0:00:16.5]} 42. Rh1 {[%clk 0:00:01.5]} 42... Rh8 {[%clk 0:00:13.7]}
43. Ng2 {[%clk 0:00:01.4]} 43... Bf6 {[%clk 0:00:13.3]} 44. Rxh8+ {[%clk
0:00:02.3]} 44... Bxh8 {[%clk 0:00:13.9]} 45. Nf4 {[%clk 0:00:02.8]} 45... Bf7
{[%clk 0:00:13.9]} 46. Nd5 {[%clk 0:00:03.3]} 46... Bxd5 {[%clk 0:00:13.2]} 47.
exd5 {[%clk 0:00:03.9]} 47... Ke7 {[%clk 0:00:13.1]} 48. Ke3 {[%clk 0:00:04.8]}
48... Be5 {[%clk 0:00:12.6]} 49. Ke4 {[%clk 0:00:05.7]} 49... a5 {[%clk
0:00:12.2]} 50. Kf5 {[%clk 0:00:05.8]} 50... Kf7 {[%clk 0:00:12.6]} 51. Kg5
{[%clk 0:00:05.5]} 51... Ke7 {[%clk 0:00:11.6]} 52. Kg6 {[%clk 0:00:05.9]} 52...
Bf4 {[%clk 0:00:11.8]} 53. Kf5 {[%clk 0:00:06]} 53... Bc1 {[%clk 0:00:11.9]} 54.
Ke4 {[%clk 0:00:06.7]} 54... Bxb2 {[%clk 0:00:12.2]} 55. Kd4 {[%clk 0:00:07.5]}
55... Bxa3 {[%clk 0:00:12.5]} 56. Kxc4 {[%clk 0:00:08.3]} 56... Bc5 {[%clk
0:00:12.7]} 57. Kb5 {[%clk 0:00:08.7]} 57... Kf6 {[%clk 0:00:12.1]} 58. Kxa5
{[%clk 0:00:09]} 58... Ke5 {[%clk 0:00:12.5]} 59. c4 {[%clk 0:00:09.4]} 59...
Kd4 {[%clk 0:00:12.7]} 60. Kb5 {[%clk 0:00:09.7]} 60... Kc3 {[%clk 0:00:13]} 0-1

[Event "Early-Titled-Tuesday-Blitz-July-09-2024"]
[Site "Chess.com"]
[Date "2024.07.09"]
[Round "6"]
[White "suspiciumchess"]
[Black "sathvikadiga"]
[Result "1-0"]
[WhiteElo "2452"]
[BlackElo "2658"]
[TimeControl "180+1"]
[EndTime "9:09:39 PDT"]
[Termination "suspiciumchess won on time"]

1. c4 {[%clk 0:03:00.9]} 1... e5 {[%clk 0:02:59.2]} 2. a3 {[%clk 0:03:00.4]}
2... Nf6 {[%clk 0:02:56.9]} 3. Nc3 {[%clk 0:03:00.2]} 3... Nc6 {[%clk
0:02:56.9]} 4. e3 {[%clk 0:02:59.4]} 4... d5 {[%clk 0:02:55.4]} 5. cxd5 {[%clk
0:03:00.1]} 5... Nxd5 {[%clk 0:02:55]} 6. Qc2 {[%clk 0:02:56.3]} 6... Be6 {[%clk
0:02:54.1]} 7. Nf3 {[%clk 0:02:55.6]} 7... Be7 {[%clk 0:02:51.1]} 8. Bb5 {[%clk
0:02:55]} 8... f6 {[%clk 0:02:48.9]} 9. O-O {[%clk 0:02:49.7]} 9... O-O {[%clk
0:02:48.2]} 10. b4 {[%clk 0:02:43.1]} 10... a6 {[%clk 0:02:41.2]} 11. Bc4 {[%clk
0:02:33.9]} 11... Kh8 {[%clk 0:02:36.1]} 12. Nxd5 {[%clk 0:02:23.1]} 12... Bxd5
{[%clk 0:02:37]} 13. Bd3 {[%clk 0:01:59.5]} 13... g6 {[%clk 0:02:27.6]} 14. Bb2
{[%clk 0:01:59.2]} 14... Qd7 {[%clk 0:02:14.3]} 15. Be4 {[%clk 0:01:52.3]} 15...
Rad8 {[%clk 0:02:06.2]} 16. Rac1 {[%clk 0:01:45]} 16... Kg8 {[%clk 0:02:05.5]}
17. Rfd1 {[%clk 0:01:38.9]} 17... Bxe4 {[%clk 0:01:43]} 18. Qxe4 {[%clk
0:01:38.3]} 18... Qd3 {[%clk 0:01:42.1]} 19. Qxd3 {[%clk 0:01:24.4]} 19... Rxd3
{[%clk 0:01:43]} 20. Rc3 {[%clk 0:01:18.5]} 20... Rfd8 {[%clk 0:01:42.1]} 21. e4
{[%clk 0:01:06.6]} 21... Kf7 {[%clk 0:01:23]} 22. Kf1 {[%clk 0:01:06.5]} 22...
Ke6 {[%clk 0:01:15.6]} 23. Ke2 {[%clk 0:01:06.6]} 23... R3d7 {[%clk 0:01:15.5]}
24. Rc4 {[%clk 0:00:58.5]} 24... f5 {[%clk 0:01:09.1]} 25. Rdc1 {[%clk
0:00:45.4]} 25... f4 {[%clk 0:00:37.7]} 26. Rd1 {[%clk 0:00:35]} 26... g5 {[%clk
0:00:33.9]} 27. d4 {[%clk 0:00:34.8]} 27... exd4 {[%clk 0:00:20.3]} 28. Nxd4+
{[%clk 0:00:35.7]} 28... Kf7 {[%clk 0:00:20]} 29. Nxc6 {[%clk 0:00:34.5]} 29...
Rxd1 {[%clk 0:00:12.5]} 30. Nxd8+ {[%clk 0:00:34.9]} 30... Rxd8 {[%clk
0:00:13.4]} 31. Rxc7 {[%clk 0:00:35.5]} 31... b5 {[%clk 0:00:12.9]} 32. Ra7
{[%clk 0:00:24.5]} 32... g4 {[%clk 0:00:12.4]} 33. Rxa6 {[%clk 0:00:24]} 33...
Bg5 {[%clk 0:00:12.9]} 34. Ra7+ {[%clk 0:00:23.7]} 34... Ke6 {[%clk 0:00:11.2]}
35. f3 {[%clk 0:00:18.1]} 35... Rc8 {[%clk 0:00:08.7]} 36. Kd3 {[%clk
0:00:16.4]} 36... Rd8+ {[%clk 0:00:09]} 37. Bd4 {[%clk 0:00:16.8]} 37... h5
{[%clk 0:00:05.4]} 38. Ra6+ {[%clk 0:00:15.3]} 38... Kf7 {[%clk 0:00:04.8]} 39.
Rb6 {[%clk 0:00:13]} 39... Bh4 {[%clk 0:00:04.6]} 40. Rxb5 {[%clk 0:00:12.2]}
40... Be1 {[%clk 0:00:02.2]} 41. Rd5 {[%clk 0:00:11.7]} 41... Ra8 {[%clk
0:00:02.8]} 42. Bb2 {[%clk 0:00:09.6]} 42... h4 {[%clk 0:00:01.9]} 43. fxg4
{[%clk 0:00:08.6]} 43... Ke6 {[%clk 0:00:02.2]} 44. Rf5 {[%clk 0:00:08.3]} 44...
Rd8+ {[%clk 0:00:01.7]} 45. Rd5 {[%clk 0:00:07.7]} 45... Ra8 {[%clk 0:00:01.5]}
46. b5 {[%clk 0:00:07.3]} 46... Ra4 {[%clk 0:00:01.4]} 47. Re5+ {[%clk 0:00:06]}
47... Kd6 {[%clk 0:00:01.1]} 48. Rf5 {[%clk 0:00:06]} 1-0

[Event "Early-Titled-Tuesday-Blitz-July-09-2024"]
[Site "Chess.com"]
[Date "2024.07.09"]
[Round "6"]
[White "ljuks68"]
[Black "whitemirrorninja"]
[Result "0-1"]
[WhiteElo "2401"]
[BlackElo "2532"]
[TimeControl "180+1"]
[EndTime "9:09:39 PDT"]
[Termination "whitemirrorninja won on time"]

1. e4 {[%clk 0:02:45]} 1... c5 {[%clk 0:02:54.4]} 2. Nf3 {[%clk 0:02:45]} 2...
d6 {[%clk 0:02:52.9]} 3. d4 {[%clk 0:02:45.9]} 3... cxd4 {[%clk 0:02:53.4]} 4.
Nxd4 {[%clk 0:02:46.3]} 4... Nf6 {[%clk 0:02:53]} 5. Nc3 {[%clk 0:02:46.6]} 5...
e5 {[%clk 0:02:53.1]} 6. Bb5+ {[%clk 0:02:45.4]} 6... Bd7 {[%clk 0:02:51.2]} 7.
Bxd7+ {[%clk 0:02:44.5]} 7... Qxd7 {[%clk 0:02:52.1]} 8. Nde2 {[%clk 0:02:44.7]}
8... Qc6 {[%clk 0:02:51.4]} 9. f3 {[%clk 0:02:44.2]} 9... Nbd7 {[%clk 0:02:48]}
10. Be3 {[%clk 0:02:43.1]} 10... Be7 {[%clk 0:02:47.5]} 11. O-O {[%clk 0:02:43]}
11... O-O {[%clk 0:02:46.5]} 12. Qd2 {[%clk 0:02:42.1]} 12... Nb6 {[%clk
0:02:38.4]} 13. b3 {[%clk 0:02:39.3]} 13... Rac8 {[%clk 0:02:34.9]} 14. Bg5
{[%clk 0:02:27.4]} 14... Rfd8 {[%clk 0:02:31.4]} 15. Bxf6 {[%clk 0:02:25.2]}
15... Bxf6 {[%clk 0:02:31.1]} 16. Rad1 {[%clk 0:02:25.4]} 16... h6 {[%clk
0:02:27.5]} 17. Qd3 {[%clk 0:02:14.5]} 17... Rd7 {[%clk 0:02:16.3]} 18. a4
{[%clk 0:02:05.8]} 18... Bd8 {[%clk 0:02:02.6]} 19. a5 {[%clk 0:01:37.8]} 19...
Na8 {[%clk 0:02:01.7]} 20. b4 {[%clk 0:01:37.9]} 20... Qc4 {[%clk 0:01:56.5]}
21. Qxc4 {[%clk 0:01:33.6]} 21... Rxc4 {[%clk 0:01:57.4]} 22. Rd3 {[%clk
0:01:07.8]} 22... Rxb4 {[%clk 0:01:51.1]} 23. Rfd1 {[%clk 0:01:06.6]} 23... Bxa5
{[%clk 0:01:42.3]} 24. Rxd6 {[%clk 0:01:06.7]} 24... Rxd6 {[%clk 0:01:38.7]} 25.
Rxd6 {[%clk 0:01:07.3]} 25... Rc4 {[%clk 0:01:31.7]} 26. Nd5 {[%clk 0:01:02]}
26... Rxc2 {[%clk 0:01:29.2]} 27. Ng3 {[%clk 0:01:00.8]} 27... g6 {[%clk
0:01:20.7]} 28. h4 {[%clk 0:00:58.4]} 28... h5 {[%clk 0:01:15.4]} 29. Rd7 {[%clk
0:00:46.5]} 29... Nc7 {[%clk 0:01:08.3]} 30. Nf6+ {[%clk 0:00:34.7]} 30... Kf8
{[%clk 0:01:01.6]} 31. Nh7+ {[%clk 0:00:27.1]} 31... Ke8 {[%clk 0:00:55.3]} 32.
Nf6+ {[%clk 0:00:27]} 32... Kf8 {[%clk 0:00:56]} 33. Nh7+ {[%clk 0:00:27.3]}
33... Kg8 {[%clk 0:00:50.5]} 34. Ng5 {[%clk 0:00:27]} 34... Ne6 {[%clk
0:00:30.7]} 35. Nxe6 {[%clk 0:00:19]} 35... fxe6 {[%clk 0:00:29.6]} 36. Rxb7
{[%clk 0:00:19.2]} 36... Rc7 {[%clk 0:00:26.5]} 37. Rb5 {[%clk 0:00:18.1]} 37...
Bb6+ {[%clk 0:00:25.8]} 38. Kh2 {[%clk 0:00:18.2]} 38... Rc5 {[%clk 0:00:23.6]}
39. Rb1 {[%clk 0:00:15.7]} 39... Kf7 {[%clk 0:00:22.5]} 40. Ne2 {[%clk
0:00:05.8]} 40... Rc2 {[%clk 0:00:22.1]} 41. Ng1 {[%clk 0:00:04.3]} 41... Ke7
{[%clk 0:00:18.5]} 42. Nh3 {[%clk 0:00:03.4]} 42... Kd6 {[%clk 0:00:18.6]} 43.
Ng5 {[%clk 0:00:03.5]} 43... Bd4 {[%clk 0:00:18.1]} 44. Rb8 {[%clk 0:00:02.1]}
44... Rc7 {[%clk 0:00:14.8]} 45. Rd8+ {[%clk 0:00:01.1]} 45... Rd7 {[%clk
0:00:11.4]} 46. Rg8 {[%clk 0:00:01.2]} 46... a5 {[%clk 0:00:11.5]} 47. Rxg6
{[%clk 0:00:01.5]} 47... a4 {[%clk 0:00:08.9]} 48. Rxe6+ {[%clk 0:00:01.8]}
48... Kc5 {[%clk 0:00:09.6]} 49. Ra6 {[%clk 0:00:01.8]} 49... Kb5 {[%clk
0:00:09.1]} 50. Ra8 {[%clk 0:00:01.7]} 50... Ba7 {[%clk 0:00:01.8]} 0-1

[Event "Early-Titled-Tuesday-Blitz-July-09-2024"]
[Site "Chess.com"]
[Date "2024.07.09"]
[Round "6"]
[White "Dr_Pepper18"]
[Black "amanjazu"]
[Result "0-1"]
[WhiteElo "2437"]
[BlackElo "2578"]
[TimeControl "180+1"]
[EndTime "9:09:39 PDT"]
[Termination "amanjazu won on time"]

1. d4 {[%clk 0:03:00.9]} 1... Nf6 {[%clk 0:02:59.8]} 2. c4 {[%clk 0:03:00.8]}
2... c5 {[%clk 0:03:00.4]} 3. d5 {[%clk 0:03:00.7]} 3... b5 {[%clk 0:03:00.5]}
4. cxb5 {[%clk 0:03:01.3]} 4... a6 {[%clk 0:03:01.2]} 5. bxa6 {[%clk 0:03:01.8]}
5... Bxa6 {[%clk 0:03:00.8]} 6. Nc3 {[%clk 0:03:02.4]} 6... d6 {[%clk 0:03:01]}
7. e4 {[%clk 0:03:02.9]} 7... Bxf1 {[%clk 0:03:00.4]} 8. Kxf1 {[%clk 0:03:03.8]}
8... g6 {[%clk 0:03:01.1]} 9. g3 {[%clk 0:03:04.5]} 9... Bg7 {[%clk 0:03:01.7]}
10. Kg2 {[%clk 0:03:05.1]} 10... O-O {[%clk 0:03:02.5]} 11. Nf3 {[%clk
0:03:05.8]} 11... Na6 {[%clk 0:03:02]} 12. a4 {[%clk 0:03:06]} 12... Qa5 {[%clk
0:03:02.3]} 13. Bd2 {[%clk 0:03:04.8]} 13... Qb4 {[%clk 0:02:57.5]} 14. Qe2
{[%clk 0:03:03.6]} 14... Qb7 {[%clk 0:02:41.4]} 15. Nb5 {[%clk 0:02:57.2]} 15...
Rfb8 {[%clk 0:02:40.4]} 16. Bc3 {[%clk 0:02:46.9]} 16... Nc7 {[%clk 0:02:40.5]}
17. Nxc7 {[%clk 0:02:47.1]} 17... Qxc7 {[%clk 0:02:41.4]} 18. Rhb1 {[%clk
0:02:28.6]} 18... Nd7 {[%clk 0:02:38.9]} 19. Bxg7 {[%clk 0:02:25.7]} 19... Kxg7
{[%clk 0:02:39.8]} 20. Nd2 {[%clk 0:02:25.4]} 20... Rb4 {[%clk 0:02:38.9]} 21.
b3 {[%clk 0:02:25.1]} 21... Rab8 {[%clk 0:02:34.6]} 22. Qd3 {[%clk 0:02:22.8]}
22... Kg8 {[%clk 0:02:30.2]} 23. Qc3 {[%clk 0:02:17.6]} 23... Nf6 {[%clk
0:02:23.5]} 24. f3 {[%clk 0:02:16.3]} 24... h5 {[%clk 0:02:12.1]} 25. Ra3 {[%clk
0:01:51.6]} 25... h4 {[%clk 0:02:10.7]} 26. a5 {[%clk 0:01:44.7]} 26... Qa7
{[%clk 0:01:59.9]} 27. a6 {[%clk 0:01:33.9]} 27... Nd7 {[%clk 0:01:27.7]} 28.
Rba1 {[%clk 0:01:00.2]} 28... Ne5 {[%clk 0:01:23]} 29. f4 {[%clk 0:00:57.9]}
29... Nd7 {[%clk 0:01:20.6]} 30. Nc4 {[%clk 0:00:46.2]} 30... Nf6 {[%clk
0:01:19.8]} 31. Qd3 {[%clk 0:00:38.9]} 31... Ra8 {[%clk 0:01:05.3]} 32. Ra4
{[%clk 0:00:32.3]} 32... Qb8 {[%clk 0:01:01.3]} 33. a7 {[%clk 0:00:23.2]} 33...
Qb5 {[%clk 0:00:55.9]} 34. Rxb4 {[%clk 0:00:23.1]} 34... cxb4 {[%clk 0:00:53.9]}
35. e5 {[%clk 0:00:13.8]} 35... dxe5 {[%clk 0:00:30.7]} 36. fxe5 {[%clk
0:00:14.7]} 36... Qxd5+ {[%clk 0:00:30.4]} 37. Qxd5 {[%clk 0:00:13.9]} 37...
Nxd5 {[%clk 0:00:31.3]} 38. Ra5 {[%clk 0:00:14.1]} 38... e6 {[%clk 0:00:31.6]}
39. gxh4 {[%clk 0:00:12.3]} 39... Kf8 {[%clk 0:00:31.5]} 40. Kg3 {[%clk
0:00:08.2]} 40... Ke7 {[%clk 0:00:32.1]} 41. Kg4 {[%clk 0:00:08.1]} 41... Kd8
{[%clk 0:00:32.4]} 42. Nd6 {[%clk 0:00:04.7]} 42... Ke7 {[%clk 0:00:25.9]} 43.
Kg5 {[%clk 0:00:02.3]} 43... f6+ {[%clk 0:00:18.3]} 44. Kg4 {[%clk 0:00:01.6]}
44... fxe5 {[%clk 0:00:15.4]} 45. Nb5 {[%clk 0:00:02.5]} 45... Kd7 {[%clk
0:00:13.1]} 46. Ra6 {[%clk 0:00:02.4]} 46... Nc7 {[%clk 0:00:11.5]} 47. Ra5
{[%clk 0:00:01.9]} 47... Nxb5 {[%clk 0:00:11.3]} 48. Rxb5 {[%clk 0:00:02.8]}
48... Rxa7 {[%clk 0:00:12]} 49. Rxb4 {[%clk 0:00:03.1]} 49... Ke7 {[%clk
0:00:12.1]} 50. Kg5 {[%clk 0:00:03.4]} 50... Ra2 {[%clk 0:00:09.3]} 51. Rb7+
{[%clk 0:00:01.8]} 51... Kd6 {[%clk 0:00:08.9]} 52. Kxg6 {[%clk 0:00:02.7]}
52... Rg2+ {[%clk 0:00:09.2]} 0-1

[Event "Early-Titled-Tuesday-Blitz-July-09-2024"]
[Site "Chess.com"]
[Date "2024.07.09"]
[Round "6"]
[White "Sadykov_Ramil"]
[Black "K_A_S_T_O_R"]
[Result "0-1"]
[WhiteElo "2618"]
[BlackElo "2854"]
[TimeControl "180+1"]
[EndTime "9:09:41 PDT"]
[Termination "K_A_S_T_O_R won by resignation"]

1. e4 {[%clk 0:01:17.2]} 1... c5 {[%clk 0:02:57.7]} 2. Nf3 {[%clk 0:01:16.8]}
2... d6 {[%clk 0:02:57.7]} 3. Bb5+ {[%clk 0:01:16.9]} 3... Nd7 {[%clk
0:02:56.3]} 4. O-O {[%clk 0:01:15.9]} 4... a6 {[%clk 0:02:54.4]} 5. Bd3 {[%clk
0:01:15]} 5... Ngf6 {[%clk 0:02:53.2]} 6. c3 {[%clk 0:01:14.6]} 6... e6 {[%clk
0:02:51.9]} 7. Bc2 {[%clk 0:01:13.2]} 7... b5 {[%clk 0:02:51.2]} 8. d4 {[%clk
0:01:12.8]} 8... Bb7 {[%clk 0:02:51]} 9. Re1 {[%clk 0:01:11.8]} 9... Be7 {[%clk
0:02:50.3]} 10. Nbd2 {[%clk 0:01:08.8]} 10... Qc7 {[%clk 0:02:49.5]} 11. a4
{[%clk 0:01:04.9]} 11... O-O {[%clk 0:02:48.2]} 12. Nf1 {[%clk 0:00:56.7]} 12...
cxd4 {[%clk 0:02:31.7]} 13. cxd4 {[%clk 0:00:55.8]} 13... Rfc8 {[%clk
0:02:32.1]} 14. Bd3 {[%clk 0:00:52]} 14... bxa4 {[%clk 0:02:24.8]} 15. Rxa4
{[%clk 0:00:44.6]} 15... a5 {[%clk 0:02:18.4]} 16. h3 {[%clk 0:00:37.8]} 16...
d5 {[%clk 0:02:10.6]} 17. e5 {[%clk 0:00:34.9]} 17... Ne4 {[%clk 0:02:10.2]} 18.
Ng3 {[%clk 0:00:21.7]} 18... Nb6 {[%clk 0:02:02.2]} 19. Ra1 {[%clk 0:00:19.8]}
19... Nxg3 {[%clk 0:01:59.5]} 20. fxg3 {[%clk 0:00:20.7]} 20... a4 {[%clk
0:01:57.7]} 21. Bg5 {[%clk 0:00:19.1]} 21... Nc4 {[%clk 0:01:52.3]} 22. Qb1
{[%clk 0:00:16.2]} 22... h6 {[%clk 0:01:51.5]} 23. Bxe7 {[%clk 0:00:11.2]} 23...
Qxe7 {[%clk 0:01:51.7]} 24. Re2 {[%clk 0:00:09.5]} 24... Qb4 {[%clk 0:01:48.6]}
25. g4 {[%clk 0:00:07.5]} 25... Qe7 {[%clk 0:01:42.7]} 26. Kh1 {[%clk
0:00:06.6]} 26... Bc6 {[%clk 0:01:41.2]} 27. Rf2 {[%clk 0:00:06.5]} 27... Rab8
{[%clk 0:01:40.8]} 28. Qf1 {[%clk 0:00:01.7]} 28... Nxb2 {[%clk 0:01:36.6]} 29.
Bb1 {[%clk 0:00:02]} 29... Bb5 {[%clk 0:01:35.2]} 30. Qe1 {[%clk 0:00:01.6]}
30... Nd3 {[%clk 0:01:32.5]} 31. Bxd3 {[%clk 0:00:01.9]} 31... Bxd3 {[%clk
0:01:32.7]} 32. Qe3 {[%clk 0:00:02.6]} 32... Bc2 {[%clk 0:01:31.6]} 33. g5
{[%clk 0:00:02.6]} 33... h5 {[%clk 0:01:31.2]} 34. g6 {[%clk 0:00:02.6]} 34...
Bxg6 {[%clk 0:01:29.9]} 35. Rxa4 {[%clk 0:00:01.9]} 35... Rc2 {[%clk 0:01:23.1]}
36. Kh2 {[%clk 0:00:01.4]} 36... Rxf2 {[%clk 0:01:22.2]} 37. Qxf2 {[%clk
0:00:02.3]} 37... Be4 {[%clk 0:01:22.2]} 38. Ra2 {[%clk 0:00:02.5]} 38... Rc8
{[%clk 0:01:20.3]} 39. h4 {[%clk 0:00:02.3]} 39... Bxf3 {[%clk 0:01:19.3]} 40.
gxf3 {[%clk 0:00:03.2]} 40... g6 {[%clk 0:01:16.2]} 41. Kg3 {[%clk 0:00:03.4]}
41... Rc4 {[%clk 0:01:14.5]} 42. Qd2 {[%clk 0:00:03.2]} 42... Kg7 {[%clk
0:01:13.7]} 43. Ra3 {[%clk 0:00:02.2]} 43... Qd8 {[%clk 0:01:08.2]} 44. Rd3
{[%clk 0:00:02.6]} 44... Qc7 {[%clk 0:01:07.5]} 45. Qf4 {[%clk 0:00:02.7]} 45...
Qe7 {[%clk 0:01:07.5]} 46. Rd2 {[%clk 0:00:02.9]} 46... Rc3 {[%clk 0:01:06.8]}
47. Rd1 {[%clk 0:00:03.2]} 47... Rc8 {[%clk 0:01:05.7]} 48. Rd2 {[%clk 0:00:03]}
48... Kh7 {[%clk 0:01:05.1]} 49. Kh3 {[%clk 0:00:03.3]} 49... Rg8 {[%clk
0:01:05.4]} 50. Rg2 {[%clk 0:00:03.1]} 50... Kg7 {[%clk 0:01:03.9]} 51. Rc2
{[%clk 0:00:03.1]} 51... Rb8 {[%clk 0:01:03]} 52. Rd2 {[%clk 0:00:02.7]} 52...
Rb1 {[%clk 0:01:00.9]} 53. Kg2 {[%clk 0:00:02.8]} 53... Rb4 {[%clk 0:00:54.7]}
54. Kg3 {[%clk 0:00:03]} 54... Kg8 {[%clk 0:00:54.2]} 55. Kh3 {[%clk 0:00:03.3]}
55... Qc7 {[%clk 0:00:51.8]} 56. Kg2 {[%clk 0:00:02.8]} 56... Rb3 {[%clk
0:00:48.6]} 57. Kg3 {[%clk 0:00:02.7]} 57... Qc3 {[%clk 0:00:47.1]} 58. Qf6
{[%clk 0:00:01.5]} 58... Qxd2 {[%clk 0:00:44.2]} 59. Qd8+ {[%clk 0:00:01.8]}
59... Kh7 {[%clk 0:00:44.4]} 60. Qf6 {[%clk 0:00:02.4]} 60... Qe1+ {[%clk
0:00:40.6]} 61. Kh3 {[%clk 0:00:02.5]} 61... Qh1+ {[%clk 0:00:39]} 62. Kg3
{[%clk 0:00:02.5]} 62... Rxf3+ {[%clk 0:00:39.6]} 63. Qxf3 {[%clk 0:00:02.2]}
63... Qxf3+ {[%clk 0:00:39.5]} 64. Kxf3 {[%clk 0:00:03.1]} 64... Kh6 {[%clk
0:00:35.8]} 65. Kf4 {[%clk 0:00:03.1]} 65... g5+ {[%clk 0:00:35.2]} 66. hxg5+
{[%clk 0:00:04]} 66... Kg6 {[%clk 0:00:35.7]} 67. Kf3 {[%clk 0:00:04.5]} 67...
Kxg5 {[%clk 0:00:36.3]} 68. Kg3 {[%clk 0:00:05.1]} 68... Kf5 {[%clk 0:00:36.4]}
69. Kf3 {[%clk 0:00:05.7]} 69... h4 {[%clk 0:00:36]} 0-1